bitfinex/quotes_ETHUSD_20240915
["timestamp","ask_amount","ask_price","bid_price","bid_amount"]
[1726418665674,4.16633,2400.2,2400.0,1.8314774]
[1726418665910,4.16633,2400.2,2399.9,2.67529385]
[1726418666218,4.16633,2400.2,2399.8,0.87523055]
[1726418666219,6.58054,2399.9,2399.8,0.87523055]
[1726418666435,3.0,2399.8,2399.4,3.25693055]
[1726418666627,4.16737,2399.6,2399.5,1.83167015]
[1726418667079,4.16737,2399.6,2399.4,3.25693055]
[1726418667284,4.16753,2399.5,2399.4,2.3817]
[1726418667510,4.16753,2399.5,2399.4,4.17943973]
[1726418669740,4.22813903,2399.5,2399.4,2.3817]
[1726418670370,0.06060903,2399.5,2399.4,2.3817]
[1726418670577,0.06060903,2399.5,2399.4,2.89178769]
[1726418670912,0.05824292,2399.5,2399.4,4.65416685]
[1726418671110,4.16719,2399.7,2399.4,4.65416685]
[1726418671325,0.05821861,2399.5,2399.4,2.3505]
[1726418671608,4.16703,2399.8,2399.5,2.3505]
[1726418671827,4.16703,2399.8,2399.6,1.8000633]
[1726418671987,4.16703,2399.8,2399.5,2.3505]
[1726418672174,4.16719,2399.7,2399.5,2.3505]
[1726418674580,8.33448,2399.7,2399.5,2.3505]
[1726418674794,2.4077,2399.6,2399.3,0.87523055]
[1726418675001,2.4077,2399.6,2399.2,0.0438831]
[1726418675002,4.16763,2399.5,2399.2,0.0438831]
[1726418675199,4.16321718,2399.5,2399.2,0.0438831]
[1726418675804,8.33084718,2399.5,2399.2,0.0438831]
[1726418676133,4.16321718,2399.5,2399.2,0.0438831]
[1726418676334,4.16788,2399.3,2399.2,0.0438831]
[1726418676636,4.16773,2399.4,2399.2,0.0438831]
[1726418678344,4.16788,2399.3,2399.2,0.0438831]
[1726418678698,4.16788,2399.3,2399.2,1.83664589]
[1726418679023,4.16788,2399.3,2399.2,0.0438831]
[1726418681907,4.16788,2399.3,2399.2,1.23910692]
[1726418682238,4.16788,2399.3,2399.2,0.0438831]
[1726418684459,4.22601222,2399.3,2399.2,0.0438831]
[1726418686670,4.22601222,2399.3,2399.2,2.3829831]
[1726418688436,4.22601222,2399.3,2399.2,0.0438831]
[1726418692571,4.22601222,2399.3,2399.2,1.8439464]
[1726418693370,4.22601222,2399.3,2399.2,0.0438831]
[1726418695744,9.29898161,2399.3,2399.2,0.0438831]
[1726418695954,8.39389222,2399.3,2399.2,0.0438831]
[1726418697382,4.22601222,2399.3,2399.2,0.0438831]
[1726418698254,10.68319222,2399.3,2399.2,0.0438831]
[1726418701289,18.40107222,2399.3,2399.2,0.0438831]
[1726418701642,31.57074845,2399.3,2399.2,0.0438831]
[1726418701783,31.57074845,2399.3,2398.7,2.58832959]
[1726418701784,18.34555,2398.8,2398.7,2.58832959]
[1726418701977,26.68392463,2398.8,2398.7,2.58832959]
[1726418702185,20.77283038,2398.8,2398.7,2.58832959]
[1726418702429,22.57289368,2398.8,2398.7,2.58832959]
[1726418702719,26.74164368,2398.8,2398.7,2.58832959]
[1726418702925,27.27290089,2398.8,2398.7,2.58832959]
[1726418703231,26.74164368,2398.8,2398.7,2.58832959]
[1726418704075,27.23749684,2398.8,2398.7,2.58832959]
[1726418704276,27.23749684,2398.8,2397.3,1.31315646]
[1726418704277,18.35023,2397.9,2397.1,0.87523055]
[1726418704559,18.35023,2397.9,2396.7,2.18430977]
[1726418704560,0.55,2397.7,2396.7,0.87319337]
[1726418704700,0.55,2397.7,2396.1,0.0471212]
[1726418704701,4.1731,2396.3,2396.1,0.0471212]
[1726418704877,8.40061376,2396.3,2396.1,0.0471212]
[1726418705129,8.40061376,2396.3,2396.1,4.1894845]
[1726418705130,0.05441376,2396.3,2396.1,4.1894845]
[1726418705274,4.17238,2396.8,2396.2,1.04145686]
[1726418705475,0.04834514,2396.7,2396.2,2.21598004]
[1726418706183,4.22088514,2396.7,2396.2,0.41591674]
[1726418706488,0.04834514,2396.7,2396.6,1.8000633]
[1726418706694,3.0,2397.1,2396.6,1.8000633]
[1726418706924,0.04812181,2396.7,2396.6,1.8000633]
[1726418707126,3.0,2397.1,2396.6,1.8000633]
[1726418707274,0.04785234,2396.7,2396.6,1.8000633]
[1726418707619,3.0,2397.1,2396.6,1.8000633]
[1726418707790,0.04791008,2396.7,2396.6,1.8000633]
[1726418707987,3.0,2397.1,2396.5,3.918341]
[1726418708181,0.04808331,2396.7,2396.5,3.918341]
[1726418708382,4.17166,2397.2,2396.5,8.090961]
[1726418708628,4.1714,2397.3,2396.7,3.918341]
[1726418708816,3.0,2397.2,2396.7,3.918341]
[1726418709215,7.17154,2397.2,2396.7,3.918341]
[1726418709436,1.13428,2397.2,2396.7,8.090741]
[1726418709591,6.46021,2397.6,2396.6,2.2668]
[1726418709592,4.17105,2397.5,2396.9,3.918341]
[1726418709931,4.1712,2397.4,2396.7,3.918341]
[1726418710091,0.834211,2397.4,2396.7,8.090621]
[1726418710291,4.816931,2397.6,2396.9,8.090391]
[1726418710292,4.17091,2397.6,2396.9,8.090391]
[1726418710591,4.17052,2397.8,2397.1,3.918341]
[1726418710795,3.0,2397.7,2397.1,3.918341]
[1726418711091,3.0,2397.7,2397.2,2.2668]
[1726418711403,0.717052,2397.6,2397.2,2.2668]
[1726418712896,0.04624916,2397.5,2397.2,2.2668]
[1726418713091,0.04624916,2397.5,2397.3,4.17135]
[1726418713292,4.17034,2397.9,2397.3,4.17135]
[1726418713643,4.2173548,2397.4,2396.7,2.2533]
[1726418713797,4.2173548,2397.4,2396.7,6.42557]
[1726418713798,4.17132,2397.4,2396.7,6.42557]
[1726418713994,0.04624612,2397.3,2396.7,6.42557]
[1726418714323,0.04624612,2397.3,2396.2,4.58914674]
[1726418714324,4.17171,2397.1,2396.5,3.918341]
[1726418714631,4.21785798,2397.2,2396.6,4.17256]
[1726418714790,0.04610168,2397.0,2396.6,4.17256]
[1726418715129,0.04443754,2396.9,2396.6,4.17256]
[1726418715429,0.90385135,2397.2,2396.7,4.17238]
[1726418715629,0.04438938,2396.8,2396.7,4.17238]
[1726418715845,0.90385135,2397.2,2396.6,4.17243]
[1726418716049,0.04438938,2396.8,2396.5,3.918341]
[1726418716211,0.39038514,2397.1,2396.3,4.17308]
[1726418716212,4.56219514,2397.1,2396.4,4.17286]
[1726418716546,0.54660465,2397.0,2396.4,4.17286]
[1726418716703,0.59110625,2397.0,2396.4,4.17286]
[1726418717049,0.59110625,2397.0,2396.5,3.918341]
[1726418717744,4.76301625,2397.0,2396.5,3.918341]
[1726418719706,0.59110625,2397.0,2396.5,3.918341]
[1726418720406,0.51533014,2396.9,2396.5,3.918341]
[1726418720759,0.04418813,2396.8,2396.5,3.918341]
[1726418721041,0.04418813,2396.8,2396.2,6.84237674]
[1726418721241,0.04418813,2396.8,2396.3,3.918341]
[1726418721450,0.04418813,2396.8,2396.2,6.84237674]
[1726418721451,3.04418813,2396.8,2396.2,6.84237674]
[1726418721612,3.79967742,2396.8,2396.2,6.84237674]
[1726418722151,3.79967742,2396.8,2396.3,3.918341]
[1726418722507,7.97203742,2396.8,2396.3,3.918341]
[1726418723654,3.79967742,2396.8,2396.3,3.918341]
[1726418723857,0.84870776,2396.7,2396.3,3.918341]
[1726418724130,0.04394234,2396.6,2396.3,3.918341]
[1726418724961,0.04394234,2396.6,2396.5,12.263841]
[1726418725172,7.37,2397.1,2396.9,6.42522]
[1726418725333,4.17112,2397.5,2397.0,3.918341]
[1726418725534,4.17112,2397.5,2396.9,2.2533]
[1726418725535,4.17146,2397.3,2396.9,2.2533]
[1726418725928,1.154112,2397.4,2396.9,2.2533]
[1726418726130,1.154112,2397.4,2396.9,6.42533]
[1726418726373,7.37,2397.6,2397.2,8.089831]
[1726418726534,7.37,2398.0,2397.4,8.089391]
[1726418726729,7.37,2398.0,2397.7,3.918341]
[1726418726949,4.17014,2398.0,2397.7,3.918341]
[1726418727476,4.16964,2398.3,2397.7,3.918341]
[1726418727626,4.586854,2398.2,2397.9,3.918341]
[1726418727827,0.416964,2398.2,2397.9,3.918341]
[1726418728745,0.416964,2398.2,2398.1,3.918341]
[1726418729074,11.53935,2398.5,2398.1,3.918341]
[1726418729075,4.16935,2398.5,2398.1,3.918341]
[1726418729445,4.16927,2398.5,2397.9,3.918341]
[1726418729642,0.416935,2398.4,2397.9,3.918341]
[1726418729841,4.16972,2398.3,2397.9,3.918341]
[1726418730171,0.416935,2398.4,2397.9,3.918341]
[1726418730172,3.416935,2398.4,2397.9,3.918341]
[1726418730354,1.1755585,2398.3,2397.9,3.918341]
[1726418731032,5.3451985,2398.3,2397.9,3.918341]
[1726418731672,5.3451985,2398.3,2397.7,4.17064]
[1726418731673,5.3451985,2398.3,2397.7,3.918341]
[1726418731871,4.1698,2398.2,2397.7,3.918341]
[1726418732168,5.3451985,2398.3,2397.7,3.918341]
[1726418732169,0.95149985,2398.1,2397.7,3.918341]
[1726418732378,4.16969,2398.3,2397.5,6.564]
[1726418732668,4.17008,2398.1,2397.5,2.293]
[1726418732968,4.1699,2398.2,2397.6,8.089161]
[1726418733173,7.37,2398.5,2398.0,8.088321]
[1726418733377,4.16887,2398.8,2398.4,3.918341]
[1726418733534,1.661891,2398.7,2398.4,3.918341]
[1726418734466,4.16847,2399.0,2398.6,3.918341]
[1726418734660,4.16812,2399.2,2398.6,3.918341]
[1726418734911,4.585042,2399.1,2398.6,3.918341]
[1726418735038,0.416812,2399.1,2398.8,3.918341]
[1726418735237,13.9308138,2399.4,2398.8,3.918341]
[1726418735238,4.16798,2399.3,2398.8,3.918341]
[1726418735586,7.3832338,2399.4,2398.5,4.16926]
[1726418735875,7.3832338,2399.4,2398.5,8.087601]
[1726418735876,4.16817,2399.2,2398.5,8.087601]
[1726418736181,4.16836,2399.1,2398.5,3.918341]
[1726418736751,4.16845,2399.0,2398.5,3.918341]
[1726418736968,4.16845,2399.0,2398.4,2.3713]
[1726418736969,0.416845,2398.9,2398.4,2.3713]
[1726418737872,4.16903,2398.7,2398.0,10.459641]
[1726418738049,4.16937,2398.5,2398.0,2.3713]
[1726418738481,4.16948,2398.4,2398.0,2.3713]
[1726418738991,4.16917,2398.6,2398.0,2.3713]
[1726418739165,0.416922,2398.5,2398.0,2.3713]
[1726418739544,4.16957,2398.4,2398.0,2.3713]
[1726418740475,4.16957,2398.4,2398.0,6.289641]
[1726418742896,4.16957,2398.4,2398.0,6.189641]
[1726418743196,0.6966292,2398.3,2398.0,6.189641]
[1726418744593,4.8662792,2398.3,2398.0,6.189641]
[1726418744796,4.8662792,2398.3,2398.0,2.2713]
[1726418744797,0.6966292,2398.3,2398.0,2.2713]
[1726418745371,4.16956,2398.4,2397.8,8.088701]
[1726418745590,0.6966282,2398.3,2397.8,8.088701]
[1726418745789,0.6966282,2398.3,2397.8,10.460001]
[1726418746384,0.416922,2398.5,2398.0,3.918341]
[1726418746613,4.16918,2398.6,2398.1,2.3713]
[1726418747108,4.16918,2398.6,2398.2,3.918341]
[1726418747278,5.002981,2398.6,2398.2,3.918341]
[1726418747477,3.0,2398.7,2398.4,3.918341]
[1726418748466,0.416845,2398.9,2398.6,3.918341]
[1726418748709,11.33705,2399.0,2398.6,3.918341]
[1726418748864,3.0,2399.0,2398.4,3.918341]
[1726418749062,4.16884,2398.8,2398.4,3.918341]
[1726418749463,4.16884,2398.8,2398.5,2.3158]
[1726418750061,8.337,2399.0,2398.5,2.3158]
[1726418750290,5.00229,2398.9,2398.5,2.3158]
[1726418750794,0.8337,2398.9,2398.5,2.3158]
[1726418751010,4.16858,2398.9,2398.5,2.3158]
[1726418751207,4.16849,2399.0,2398.5,2.3158]
[1726418751363,4.16849,2399.0,2398.6,3.918341]
[1726418751569,8.33702,2399.0,2398.6,3.918341]
[1726418751766,4.16849,2399.0,2398.6,3.918341]
[1726418751966,5.54688,2399.0,2398.6,3.918341]
[1726418752974,4.16858,2398.9,2398.5,2.3158]
[1726418754487,5.54688,2399.0,2398.5,2.3158]
[1726418754697,0.554688,2398.9,2398.5,2.3158]
[1726418755912,4.723278,2398.9,2398.5,2.3158]
[1726418756201,4.16875,2398.8,2398.5,2.3158]
[1726418757833,4.16875,2398.8,2398.3,6.216841]
[1726418758038,0.4723438,2398.7,2398.3,6.216841]
[1726418759443,4.16875,2398.8,2398.3,10.386341]
[1726418759841,4.16893,2398.7,2398.3,2.2985]
[1726418760040,4.1691,2398.6,2398.3,2.2985]
[1726418760237,0.13904948,2398.5,2398.3,2.2985]
[1726418760754,4.16956,2398.4,2397.9,2.2985]
[1726418761043,4.16956,2398.4,2397.6,2.2985]
[1726418761044,4.17007,2398.1,2397.6,2.2985]
[1726418761230,4.30932948,2398.0,2397.6,2.2985]
[1726418761637,0.13904948,2398.0,2397.7,3.918341]
[1726418761838,0.13904948,2398.0,2397.9,3.918341]
[1726418762360,0.13904948,2398.0,2397.6,6.46932]
[1726418762662,8.47946948,2398.0,2397.6,6.216841]
[1726418762868,0.13904948,2398.0,2397.6,6.216841]
[1726418763017,0.13904948,2398.0,2397.8,3.918341]
[1726418763217,0.13904948,2398.0,2397.3,2.2985]
[1726418763218,2.3084,2397.9,2397.3,2.2985]
[1726418763458,4.17118,2397.4,2397.0,6.216841]
[1726418763627,0.13904948,2397.3,2397.0,3.918341]
[1726418763830,2.3084,2397.2,2396.6,8.090801]
[1726418764032,4.17199,2397.0,2396.5,2.2985]
[1726418764229,0.13904948,2396.9,2396.8,3.918341]
[1726418764427,0.13904948,2396.9,2396.6,3.918341]
[1726418764665,4.31122948,2396.9,2396.5,2.2985]
[1726418765019,0.13904948,2396.9,2396.5,2.2985]
[1726418766061,0.13904948,2396.9,2396.2,0.41591674]
[1726418766062,0.80099243,2396.9,2396.2,0.41591674]
[1726418766271,4.17268,2396.6,2396.2,0.41591674]
[1726418766571,0.13904948,2396.5,2396.2,4.33425774]
[1726418767449,0.13904948,2396.5,2396.4,3.918341]
[1726418767757,0.13904948,2396.5,2396.4,6.193741]
[1726418767965,0.13904948,2396.5,2396.4,10.366661]
[1726418768121,0.13904948,2396.5,2396.2,0.41591674]
[1726418768323,0.13904948,2396.5,2396.2,4.33425774]
[1726418768556,0.13904948,2396.5,2396.4,3.918341]
[1726418769163,2.60364948,2396.5,2396.2,5.44500813]
[1726418769345,2.60364948,2396.5,2396.2,0.41591674]
[1726418770633,0.13904948,2396.5,2396.3,3.918341]
[1726418770834,0.13904948,2396.5,2396.3,6.193741]
[1726418773725,0.13904948,2396.5,2396.3,7.27709739]
[1726418773937,17.01896,2397.0,2396.4,4.17292]
[1726418774143,2.477,2397.0,2396.5,3.918341]
[1726418774369,7.17184,2397.1,2396.5,3.918341]
[1726418774574,9.847,2397.3,2396.7,3.918341]
[1726418774726,9.847,2397.3,2396.9,3.918341]
[1726418774727,3.0,2397.2,2396.9,3.918341]
[1726418775125,6.64791,2397.6,2396.8,2.446]
[1726418775328,7.37,2397.7,2397.1,8.090041]
[1726418775524,7.37,2397.7,2397.1,3.918341]
[1726418775525,8.34182,2397.6,2397.1,3.918341]
[1726418775773,4.17086,2397.6,2397.1,3.918341]
[1726418776869,2.477,2397.5,2396.8,0.01155]
[1726418777164,4.17128,2397.4,2396.8,0.01155]
[1726418777732,4.17157,2397.2,2396.8,0.01155]
[1726418779128,8.34263,2397.4,2396.8,0.01155]
[1726418779329,4.17128,2397.4,2396.9,3.918341]
[1726418779531,4.17128,2397.4,2396.9,6.364341]
[1726418779853,8.34258,2397.4,2396.9,6.364341]
[1726418780028,4.17155,2397.2,2396.8,0.01155]
[1726418780698,4.1715,2397.3,2396.8,0.01155]
[1726418780906,4.17181,2397.1,2396.8,0.01155]
[1726418781210,0.664881,2397.0,2396.8,0.01155]
[1726418781361,2.477,2397.2,2396.8,0.01155]
[1726418781861,6.64856,2397.2,2396.8,0.01155]
[1726418783096,4.17141,2397.3,2396.8,0.01155]
[1726418784188,8.34293,2397.3,2396.8,0.01155]
[1726418784759,4.17141,2397.3,2396.8,0.01155]
[1726418784959,1.818958,2397.4,2396.9,6.61805]
[1726418784960,3.0,2397.4,2396.9,6.61805]
[1726418785204,3.0,2397.4,2396.9,10.536391]
[1726418785205,7.17128,2397.4,2396.9,10.536391]
[1726418785501,3.0,2397.4,2396.9,10.536391]
[1726418785710,7.17121,2397.4,2396.9,12.13115931]
[1726418785861,3.0,2397.4,2396.9,12.13115931]
[1726418786593,3.0,2397.4,2396.9,16.30309931]
[1726418786785,4.17049,2397.8,2397.3,3.918341]
[1726418786982,4.17069,2397.7,2397.3,3.918341]
[1726418788417,3.0,2397.8,2397.4,2.4542]
[1726418789065,4.17042,2397.9,2397.4,2.4542]
[1726418789066,4.17042,2397.9,2397.5,3.918341]
[1726418789687,4.17042,2397.9,2397.4,2.4542]
[1726418790609,4.17016,2398.0,2397.4,6.62535]
[1726418790983,3.0,2398.0,2397.5,8.089261]
[1726418791313,4.17008,2398.1,2397.7,3.918341]
[1726418791804,3.50855883,2398.3,2397.5,4.580876]
[1726418791981,0.945452,2398.2,2397.5,8.751726]
[1726418792582,4.17002,2398.1,2397.5,8.751726]
[1726418792785,4.17002,2398.1,2397.5,12.922636]
[1726418793218,4.17002,2398.1,2397.5,8.751726]
[1726418793509,9.285282,2398.2,2397.5,8.751726]
[1726418793810,3.0,2398.3,2397.8,2.2671]
[1726418794189,7.16962,2398.3,2397.8,2.2671]
[1726418794387,3.0,2398.3,2397.8,6.43756]
[1726418795118,4.16951,2398.4,2397.9,3.918341]
[1726418795928,4.16951,2398.4,2397.9,8.088641]
[1726418796239,7.37,2398.5,2398.1,3.918341]
[1726418796414,11.53884,2398.8,2398.3,3.918341]
[1726418796609,4.16884,2398.8,2398.3,3.918341]
[1726418796815,0.0276562,2399.0,2398.7,3.918341]
[1726418797009,4.70472503,2399.0,2398.5,3.918341]
[1726418797318,5.9615223,2399.0,2398.5,3.918341]
[1726418797531,5.45296347,2399.0,2398.5,3.918341]
[1726418798042,5.45296347,2399.0,2398.4,2.2671]
[1726418798043,0.0276562,2399.0,2398.7,3.918341]
[1726418799649,0.0276562,2399.0,2398.5,3.918341]
[1726418799806,0.0276562,2399.0,2398.5,5.3707811]
[1726418800540,4.1960662,2399.0,2398.5,9.5400411]
[1726418801251,0.0276562,2399.0,2398.8,2.2671]
[1726418802854,0.0276562,2399.0,2398.8,6.43583]
[1726418803055,0.0276562,2399.0,2398.9,5.3706351]
[1726418803357,3.0,2399.4,2398.9,5.3706351]
[1726418803358,3.0,2399.4,2398.9,9.5392051]
[1726418803720,7.37,2399.5,2399.2,2.2671]
[1726418803920,7.37,2399.5,2399.0,2.2671]
[1726418803921,4.16754,2399.5,2399.0,2.2671]
[1726418804126,4.16771,2399.4,2399.0,2.2671]
[1726418804625,4.16751,2399.6,2399.0,4.39498]
[1726418804839,4.16703,2399.8,2399.2,2.2671]
[1726418805027,4.16737,2399.6,2399.2,2.2671]
[1726418805232,3.0392062,2399.7,2399.2,2.2671]
[1726418805437,2.9892062,2399.7,2399.2,2.2671]
[1726418805649,7.1565162,2399.7,2399.2,2.2671]
[1726418805817,4.16747,2399.6,2399.2,2.2671]
[1726418806850,2.9892062,2399.7,2399.2,2.2671]
[1726418807251,2.9892062,2399.7,2399.2,7.4931541]
[1726418808476,15.70353,2400.0,2399.3,8.086101]
[1726418808632,4.1667,2400.0,2399.3,8.086101]
[1726418808833,4.1667,2400.0,2399.5,2.169378]
[1726418809149,4.16637,2400.2,2399.7,3.918341]
[1726418809333,4.16637,2400.2,2399.5,10.255139]
[1726418809533,4.16637,2400.2,2399.5,7.3623119]
[1726418809844,4.16637,2400.2,2399.5,15.4480429]
[1726418810044,4.16637,2400.2,2399.6,4.16735]
[1726418811036,4.16637,2400.2,2399.7,4.16718]
[1726418811239,4.16637,2400.2,2399.8,0.416718]
[1726418811476,4.16637,2400.2,2399.7,4.16718]
[1726418812063,4.16637,2400.2,2399.8,2.2647]
[1726418813280,4.2052562,2400.4,2399.8,2.2647]
[1726418813583,4.2052562,2400.4,2399.8,6.43166]
[1726418813806,0.0392062,2400.4,2400.1,3.918341]
[1726418814006,0.0392062,2400.4,2399.8,2.2647]
[1726418814007,2.3406,2400.3,2399.8,2.2647]
[1726418814302,4.16633,2400.2,2399.8,2.2647]
[1726418814444,4.1665,2400.1,2399.8,2.2647]
[1726418814786,4.16633,2400.2,2399.8,2.2647]
[1726418814787,8.33278,2400.2,2399.8,2.2647]
[1726418814964,4.16633,2400.2,2399.8,2.2647]
[1726418815158,8.33275,2400.2,2399.8,2.2647]
[1726418815366,4.16633,2400.2,2399.8,2.2647]
[1726418815685,4.16633,2400.2,2399.8,7.2180801]
[1726418815865,4.16633,2400.2,2399.8,2.2647]
[1726418817075,0.0392062,2400.4,2400.0,2.2647]
[1726418817287,4.2051962,2400.4,2400.0,2.2647]
[1726418818019,0.0392062,2400.4,2400.0,2.2647]
[1726418818519,4.2051862,2400.4,2400.0,2.2647]
[1726418818814,0.0392062,2400.4,2400.0,2.2647]
[1726418821481,0.0392062,2400.4,2400.0,3.2996741]
[1726418821680,0.0392062,2400.4,2399.8,2.2647]
[1726418821681,4.16643,2400.2,2399.8,2.2647]
[1726418821980,8.33254,2400.3,2399.8,2.2647]
[1726418822677,4.16634,2400.2,2399.8,2.2647]
[1726418822916,4.16661,2400.1,2399.8,2.2647]
[1726418823131,2.8906,2400.3,2399.6,2.2647]
[1726418823425,8.33431,2399.8,2399.4,2.2647]
[1726418823597,4.16714,2399.8,2399.4,2.2647]
[1726418823793,4.16714,2399.8,2399.4,2.907974]
[1726418823988,4.16714,2399.8,2399.4,6.826315]
[1726418825583,4.16677,2400.0,2399.4,6.826315]
[1726418825584,8.33359,2400.0,2399.4,6.826315]
[1726418825818,4.16687,2399.9,2399.4,6.826315]
[1726418826208,4.16677,2400.0,2399.4,6.826315]
[1726418826414,4.16677,2400.0,2399.5,3.7808825]
[1726418826722,8.33354,2400.0,2399.5,3.7808825]
[1726418826881,8.33357,2400.0,2399.5,3.7808825]
[1726418827085,4.16677,2400.0,2399.5,3.7808825]
[1726418827284,8.33356,2400.0,2399.5,3.7808825]
[1726418827589,7.16641,2400.2,2399.6,5.10502235]
[1726418827783,7.37,2400.3,2399.8,3.918341]
[1726418828008,7.37,2400.3,2399.9,1.0372831]
[1726418828009,11.53631,2400.3,2399.9,1.0372831]
[1726418828323,7.37,2400.3,2399.9,1.0372831]
[1726418828481,7.37,2400.3,2400.0,2.2874]
[1726418830214,4.16643,2400.2,2399.8,2.2874]
[1726418830428,4.16684,2399.9,2399.5,2.2874]
[1726418830595,4.16652,2400.1,2399.6,0.8085761]
[1726418830596,4.16668,2400.0,2399.6,0.8085761]
[1726418830927,4.16652,2400.1,2399.5,6.4548]
[1726418831124,19.72816662,2400.3,2399.6,5.2045441]
[1726418831286,15.56187662,2400.3,2399.6,5.2045441]
[1726418831483,4.16644,2400.2,2399.6,5.2045441]
[1726418831719,15.56187662,2400.3,2399.6,1.0373141]
[1726418831720,4.16651,2400.1,2399.6,1.0373141]
[1726418832025,4.16668,2400.0,2399.5,6.4548]
[1726418833926,4.16651,2400.1,2399.5,6.4548]
[1726418834290,8.3331,2400.1,2399.5,6.4548]
[1726418834499,4.16651,2400.1,2399.5,7.99551108]
[1726418834784,8.33316,2400.1,2399.5,7.99551108]
[1726418835212,4.16677,2400.0,2399.5,3.82811108]
[1726418836003,4.16704,2399.8,2399.5,2.2874]
[1726418836328,3.918341,2400.2,2399.5,2.2874]
[1726418836536,4.1677,2399.4,2399.1,3.12139977]
[1726418836737,4.1677,2399.4,2399.1,2.2552]
[1726418837027,4.16788,2399.3,2399.1,2.2552]
[1726418837221,4.1677,2399.4,2399.1,2.2552]
[1726418837427,4.16817,2399.2,2398.9,3.12139977]
[1726418837731,4.16817,2399.2,2398.7,3.12139977]
[1726418837886,4.16824,2399.1,2398.8,3.78518864]
[1726418838087,4.16817,2399.2,2398.9,2.91952791]
[1726418838329,4.16817,2399.2,2398.8,1.7251933]
[1726418838330,8.33639,2399.2,2398.8,1.7251933]
[1726418838495,4.16817,2399.2,2398.9,1.16676376]
[1726418838692,4.16817,2399.2,2398.9,0.42881635]
[1726418838891,4.16817,2399.2,2399.0,1.16680134]
[1726418839128,4.16817,2399.2,2398.9,1.29501612]
[1726418839283,4.16817,2399.2,2399.0,2.91895211]
[1726418839489,4.16857,2398.9,2398.7,3.12139977]
[1726418839716,4.16857,2398.9,2398.8,1.16766205]
[1726418840216,4.16857,2398.9,2398.8,1.16849811]
[1726418842187,4.16832,2399.1,2398.8,2.92210373]
[1726418842498,8.33664,2399.1,2398.9,1.16849811]
[1726418842705,8.33664,2399.1,2398.7,4.3722454]
[1726418842907,8.33664,2399.1,2398.8,2.92248648]
[1726418843232,8.33668,2399.1,2398.7,4.3722454]
[1726418843532,8.33665,2399.1,2398.8,2.92319708]
[1726418843828,4.16832,2399.1,2398.7,4.3722454]
[1726418844020,8.33668,2399.1,2398.8,1.16920489]
[1726418844218,4.16841,2399.0,2398.7,2.2552]
[1726418845791,4.16832,2399.1,2398.7,2.2552]
[1726418845988,8.33668,2399.1,2398.7,2.98425598]
[1726418846194,4.16832,2399.1,2398.7,2.98425598]
[1726418846437,8.33666,2399.1,2398.7,2.98425598]
[1726418847092,4.16832,2399.1,2398.7,2.98425598]
[1726418847495,4.16889,2398.8,2398.4,3.29389977]
[1726418847698,4.16862,2398.9,2398.5,1.16956106]
[1726418847699,4.16892,2398.7,2398.5,1.16956106]
[1726418847928,4.16892,2398.7,2398.4,2.4277]
[1726418848100,4.16892,2398.7,2398.4,3.69584263]
[1726418848596,8.33735,2398.9,2398.4,3.69584263]
[1726418848998,4.16862,2398.9,2398.4,3.69584263]
[1726418849725,4.16862,2398.9,2398.4,7.61418363]
[1726418850034,4.16862,2398.9,2398.5,1.59533636]
[1726418852941,3.0,2399.2,2398.7,2.353]
[1726418853150,4.16826,2399.1,2398.7,2.353]
[1726418855960,3.0,2399.2,2398.7,6.5219]
[1726418856132,3.0,2399.2,2398.7,7.591002]
[1726418856335,7.16816,2399.2,2398.7,7.591002]
[1726418856962,3.0,2399.2,2398.7,7.591002]
[1726418857442,3.0,2399.2,2398.7,7.590982]
[1726418857834,7.16816,2399.2,2398.7,7.590982]
[1726418858375,7.16816,2399.2,2398.8,1.1509323]
[1726418858985,3.0,2399.2,2398.8,1.1509323]
[1726418859272,7.16806,2399.2,2398.8,1.1509323]
[1726418859631,3.0,2399.2,2398.8,1.1509323]
[1726418860344,4.16797,2399.3,2398.8,1.1509323]
[1726418860542,4.16797,2399.3,2398.9,1.18415623]
[1726418860756,7.37,2399.4,2399.1,2.353]
[1726418860979,4.16739,2399.6,2399.1,2.353]
[1726418861947,7.37,2399.9,2399.2,3.918341]
[1726418862281,4.16698,2399.9,2399.4,2.353]
[1726418862446,8.33394,2399.9,2399.4,2.43634612]
[1726418862641,8.33394,2399.9,2399.4,2.353]
[1726418862842,7.37,2400.2,2399.4,2.353]
[1726418862843,4.16658,2400.1,2399.5,4.16752]
[1726418863158,4.16658,2400.1,2399.6,2.4363386]
[1726418863637,8.33319,2400.1,2399.6,2.353]
[1726418864073,4.16658,2400.1,2399.6,2.353]
[1726418864647,4.16658,2400.1,2399.6,2.43633873]
[1726418864877,4.16658,2400.1,2399.6,4.01595325]
[1726418865271,7.37,2400.2,2399.7,4.16714]
[1726418865490,0.0392062,2400.4,2400.0,3.918341]
[1726418865639,0.0392062,2400.4,2400.0,1.0438061]
[1726418865839,0.0392062,2400.4,2399.8,2.353]
[1726418866982,4.2051862,2400.4,2399.8,2.353]
[1726418868057,0.0392062,2400.4,2399.8,2.353]
[1726418868255,4.16614,2400.3,2399.8,2.353]
[1726418868582,6.42114,2400.3,2399.8,2.353]
[1726418869141,10.58744,2400.3,2399.8,2.353]
[1726418869448,6.42114,2400.3,2399.8,2.353]
[1726418871694,4.16614,2400.3,2399.8,2.353]
[1726418873899,4.16632,2400.2,2399.8,2.353]
[1726418874280,4.16614,2400.3,2399.8,2.353]
[1726418874461,8.33241,2400.3,2399.8,2.353]
[1726418875064,4.16614,2400.3,2399.8,2.353]
[1726418875583,8.33239,2400.3,2399.8,2.353]
[1726418876008,4.16614,2400.3,2399.8,2.353]
[1726418877390,8.33244,2400.3,2399.8,2.353]
[1726418877591,4.16614,2400.3,2399.8,2.353]
[1726418878465,4.16614,2400.3,2399.8,3.3968421]